[Event "December 19 Early 2023"]
[Site "https://www.chess.com"]
[Date "2023.12.19"]
[Round "8"]
[White "Ernst, Luca"]
[Black "Kiseleva, Arina"]
[Result "1-0"]
[Board "165"]
[TimeControl "180+1"]
[WhiteFideId "45117055"]
[BlackFideId "4164989"]
[WhiteElo "1973"]
[BlackElo "1740"]
[WhiteTeam "FRA"]
[BlackTeam "RUS"]
[WhiteClock "0:00:56"]
[BlackClock "0:00:02"]

1. d4 {[%clk 0:02:54]}  Nf6 {[%clk 0:02:58]} 2. c4 {[%clk 0:02:52]}  e6 {[%clk 0:02:58]} 3. Nf3 {[%clk 0:02:50]}  Bb4+ {[%clk 0:02:58]} 4. Bd2 {[%clk 0:02:49]}  Bxd2+ {[%clk 0:02:58]} 5. Nfxd2 {[%clk 0:02:50]}  O-O {[%clk 0:02:55]} 6. Nc3 {[%clk 0:02:49]}  d5 {[%clk 0:02:46]} 7. e3 {[%clk 0:02:45]}  c5 {[%clk 0:02:45]} 8. dxc5 {[%clk 0:02:41]}  d4 {[%clk 0:02:43]} 9. exd4 {[%clk 0:02:34]}  Qxd4 {[%clk 0:02:42]} 10. Nb3 {[%clk 0:02:32]}  Qh4 {[%clk 0:02:30]} 11. Qd4 {[%clk 0:02:25]}  Ng4 {[%clk 0:02:18]} 12. g3 {[%clk 0:02:13]}  Nc6 {[%clk 0:02:11]} 13. gxh4 {[%clk 0:02:11]}  Nxd4 {[%clk 0:02:07]} 14. Nxd4 {[%clk 0:02:12]}  e5 {[%clk 0:02:06]} 15. Ndb5 {[%clk 0:02:09]}  Bf5 {[%clk 0:02:00]} 16. h3 {[%clk 0:02:02]}  Nf6 {[%clk 0:01:55]} 17. Nd6 {[%clk 0:02:02]}  Be6 {[%clk 0:01:50]} 18. O-O-O {[%clk 0:02:00]}  b6 {[%clk 0:01:46]} 19. cxb6 {[%clk 0:01:58]}  axb6 {[%clk 0:01:46]} 20. Bg2 {[%clk 0:01:58]}  Ra5 {[%clk 0:01:37]} 21. Nd5 {[%clk 0:01:45]}  Rxa2 {[%clk 0:01:31]} 22. Nxf6+ {[%clk 0:01:42]}  gxf6 {[%clk 0:01:31]} 23. Kb1 {[%clk 0:01:41]}  Ra5 {[%clk 0:01:28]} 24. Be4 {[%clk 0:01:27]}  h5 {[%clk 0:01:08]} 25. Rd3 {[%clk 0:01:19]}  Rd8 {[%clk 0:01:04]} 26. Rhd1 {[%clk 0:01:12]}  Rb8 {[%clk 0:00:33]} 27. Bf5 {[%clk 0:00:59]}  Kf8 {[%clk 0:00:23]} 28. Bxe6 {[%clk 0:00:54]}  fxe6 {[%clk 0:00:23]} 29. Nb5 {[%clk 0:00:55]}  Rba8 {[%clk 0:00:15]} 30. Rd8+ {[%clk 0:00:54]}  Rxd8 {[%clk 0:00:12]} 31. Rxd8+ {[%clk 0:00:55]}  Ke7 {[%clk 0:00:12]} 32. Rh8 {[%clk 0:00:55]}  Ra4 {[%clk 0:00:11]} 33. b3 {[%clk 0:00:55]}  Rb4 {[%clk 0:00:09]} 34. Kb2 {[%clk 0:00:54]}  e4 {[%clk 0:00:09]} 35. Kc3 {[%clk 0:00:54]}  Rxb5 {[%clk 0:00:06]} 36. cxb5 {[%clk 0:00:54]}  f5 {[%clk 0:00:06]} 37. Rxh5 {[%clk 0:00:55]}  Kd6 {[%clk 0:00:06]} 38. Rh6 {[%clk 0:00:55]}  Ke5 {[%clk 0:00:05]} 39. Kd2 {[%clk 0:00:51]}  f4 {[%clk 0:00:06]} 40. Rh5+ {[%clk 0:00:51]}  Kd4 {[%clk 0:00:05]} 41. Rg5 {[%clk 0:00:49]}  e5 {[%clk 0:00:03]} 42. h5 {[%clk 0:00:47]}  e3+ {[%clk 0:00:01]} 43. fxe3+ {[%clk 0:00:47]}  fxe3+ {[%clk 0:00:02]} 44. Ke2 {[%clk 0:00:48]}  Ke4 {[%clk 0:00:02]} 45. Rxe5+ {[%clk 0:00:48]}  Kxe5 {[%clk 0:00:02]} 46. Kxe3 {[%clk 0:00:49]}  Kf5 {[%clk 0:00:02]} 47. Kd4 {[%clk 0:00:50]}  Kg5 {[%clk 0:00:02]} 48. Kd5 {[%clk 0:00:51]}  Kxh5 {[%clk 0:00:02]} 49. Kc6 {[%clk 0:00:52]}  Kh4 {[%clk 0:00:02]} 50. Kxb6 {[%clk 0:00:53]}  Kxh3 {[%clk 0:00:03]} 51. Kc7 {[%clk 0:00:53]}  Kg3 {[%clk 0:00:03]} 52. b6 {[%clk 0:00:54]}  Kf2 {[%clk 0:00:03]} 53. b7 {[%clk 0:00:55]}  Ke3 {[%clk 0:00:04]} 54. b8=Q {[%clk 0:00:56]}  Kd2 {[%clk 0:00:02]} 55. b4 {[%clk 0:00:56]} 1-0

[Event "December 19 Early 2023"]
[Site "https://www.chess.com"]
[Date "2023.12.19"]
[Round "8"]
[White "Papp, Petra"]
[Black "Filippova, Margarita"]
[Result "0-1"]
[Board "166"]
[TimeControl "180+1"]
[WhiteFideId "739049"]
[BlackFideId "34199680"]
[WhiteElo "2270"]
[BlackElo "1916"]
[WhiteTeam "HUN"]
[BlackTeam "RUS"]
[WhiteClock "0:00:46"]
[BlackClock "0:01:34"]

1. e4 {[%clk 0:03:00]}  c5 {[%clk 0:02:56]} 2. Nf3 {[%clk 0:03:00]}  Nc6 {[%clk 0:02:54]} 3. d4 {[%clk 0:03:00]}  cxd4 {[%clk 0:02:55]} 4. Nxd4 {[%clk 0:03:00]}  e5 {[%clk 0:02:55]} 5. Nb5 {[%clk 0:02:59]}  a6 {[%clk 0:02:55]} 6. Nd6+ {[%clk 0:02:57]}  Bxd6 {[%clk 0:02:55]} 7. Qxd6 {[%clk 0:02:58]}  Qe7 {[%clk 0:02:56]} 8. Qd2 {[%clk 0:02:50]}  Nf6 {[%clk 0:02:52]} 9. Nc3 {[%clk 0:02:48]}  O-O {[%clk 0:02:48]} 10. Be2 {[%clk 0:02:39]}  Nd4 {[%clk 0:02:45]} 11. O-O {[%clk 0:02:36]}  b5 {[%clk 0:02:42]} 12. f4 {[%clk 0:02:26]}  Bb7 {[%clk 0:02:36]} 13. Bd3 {[%clk 0:02:25]}  d6 {[%clk 0:02:34]} 14. f5 {[%clk 0:02:25]}  d5 {[%clk 0:02:32]} 15. exd5 {[%clk 0:02:17]}  Bxd5 {[%clk 0:02:33]} 16. Nxd5 {[%clk 0:02:13]}  Nxd5 {[%clk 0:02:34]} 17. Be4 {[%clk 0:02:12]}  Rad8 {[%clk 0:02:32]} 18. c3 {[%clk 0:02:09]}  Nxc3 {[%clk 0:02:26]} 19. bxc3 {[%clk 0:01:57]}  Nf3+ {[%clk 0:02:25]} 20. Rxf3 {[%clk 0:01:48]}  Rxd2 {[%clk 0:02:25]} 21. Bxd2 {[%clk 0:01:48]}  f6 {[%clk 0:02:21]} 22. Rd3 {[%clk 0:01:33]}  Rd8 {[%clk 0:02:17]} 23. Rxd8+ {[%clk 0:01:28]}  Qxd8 {[%clk 0:02:18]} 24. Be3 {[%clk 0:01:28]}  h6 {[%clk 0:02:12]} 25. Kf1 {[%clk 0:01:26]}  Qc7 {[%clk 0:02:11]} 26. Rc1 {[%clk 0:01:22]}  Qc4+ {[%clk 0:02:10]} 27. Kf2 {[%clk 0:01:20]}  Qxe4 {[%clk 0:02:07]} 28. Rd1 {[%clk 0:01:17]}  Qxf5+ {[%clk 0:01:56]} 29. Ke2 {[%clk 0:01:15]}  Qc2+ {[%clk 0:01:55]} 30. Rd2 {[%clk 0:01:15]}  Qxc3 {[%clk 0:01:55]} 31. g3 {[%clk 0:01:11]}  Qc4+ {[%clk 0:01:52]} 32. Kf2 {[%clk 0:01:11]}  Kf7 {[%clk 0:01:51]} 33. Rd6 {[%clk 0:01:07]}  Qxa2+ {[%clk 0:01:51]} 34. Kf3 {[%clk 0:01:08]}  Qc4 {[%clk 0:01:49]} 35. Rxa6 {[%clk 0:01:06]}  Qf1+ {[%clk 0:01:43]} 36. Ke4 {[%clk 0:01:04]}  b4 {[%clk 0:01:43]} 37. Rb6 {[%clk 0:01:03]}  b3 {[%clk 0:01:38]} 38. Rb7+ {[%clk 0:00:55]}  Kg6 {[%clk 0:01:35]} 39. h4 {[%clk 0:00:46]}  Qh1+ {[%clk 0:01:34]} 0-1

[Event "December 19 Early 2023"]
[Site "https://www.chess.com"]
[Date "2023.12.19"]
[Round "8"]
[White "Quirke, Jeffrey"]
[Black "Dilmukhametov, Artur"]
[Result "0-1"]
[Board "167"]
[TimeControl "180+1"]
[WhiteFideId "2013029"]
[BlackFideId "24179922"]
[WhiteElo "2159"]
[BlackElo "2176"]
[WhiteTeam "USA"]
[BlackTeam "RUS"]
[WhiteClock "0:01:06"]
[BlackClock "0:01:30"]

1. e4 {[%clk 0:02:57]}  c6 {[%clk 0:02:59]} 2. Nf3 {[%clk 0:02:55]}  d5 {[%clk 0:02:59]} 3. d3 {[%clk 0:02:51]}  dxe4 {[%clk 0:02:58]} 4. dxe4 {[%clk 0:02:51]}  Qxd1+ {[%clk 0:02:58]} 5. Kxd1 {[%clk 0:02:52]}  Bg4 {[%clk 0:02:58]} 6. Be2 {[%clk 0:02:45]}  Nd7 {[%clk 0:02:58]} 7. Ne1 {[%clk 0:02:41]}  Bxe2+ {[%clk 0:02:55]} 8. Kxe2 {[%clk 0:02:41]}  O-O-O {[%clk 0:02:54]} 9. Nd3 {[%clk 0:02:41]}  Ngf6 {[%clk 0:02:53]} 10. f3 {[%clk 0:02:38]}  e6 {[%clk 0:02:48]} 11. Be3 {[%clk 0:02:38]}  Kb8 {[%clk 0:02:45]} 12. Nd2 {[%clk 0:02:38]}  Bd6 {[%clk 0:02:19]} 13. a4 {[%clk 0:02:36]}  Ne5 {[%clk 0:02:11]} 14. a5 {[%clk 0:02:08]}  Nxd3 {[%clk 0:02:09]} 15. cxd3 {[%clk 0:02:07]}  Bb4 {[%clk 0:02:03]} 16. Nc4 {[%clk 0:02:01]}  Nd7 {[%clk 0:01:49]} 17. d4 {[%clk 0:01:47]}  f6 {[%clk 0:01:45]} 18. a6 {[%clk 0:01:41]}  b6 {[%clk 0:01:39]} 19. g4 {[%clk 0:01:36]}  Rhf8 {[%clk 0:01:37]} 20. h4 {[%clk 0:01:35]}  c5 {[%clk 0:01:37]} 21. Nd6 {[%clk 0:01:06]}  cxd4 {[%clk 0:01:30]} 0-1

[Event "December 19 Early 2023"]
[Site "https://www.chess.com"]
[Date "2023.12.19"]
[Round "8"]
[White "Brandao, Marcius Gomes"]
[Black "Limontaite, Simona"]
[Result "0-1"]
[Board "168"]
[TimeControl "180+1"]
[WhiteFideId "2124980"]
[BlackFideId "12802506"]
[WhiteElo "2095"]
[BlackElo "2092"]
[WhiteTeam "BRA"]
[BlackTeam "LTU"]
[WhiteClock "0:00:00"]
[BlackClock "0:00:04"]

1. d4 {[%clk 0:02:59]}  Nf6 {[%clk 0:02:52]} 2. c4 {[%clk 0:02:59]}  e6 {[%clk 0:02:52]} 3. Nc3 {[%clk 0:02:59]}  Bb4 {[%clk 0:02:52]} 4. f3 {[%clk 0:03:00]}  c5 {[%clk 0:02:52]} 5. d5 {[%clk 0:03:00]}  O-O {[%clk 0:02:52]} 6. e4 {[%clk 0:02:57]}  Bxc3+ {[%clk 0:02:52]} 7. bxc3 {[%clk 0:02:57]}  d6 {[%clk 0:02:52]} 8. Ne2 {[%clk 0:02:54]}  e5 {[%clk 0:02:53]} 9. Ng3 {[%clk 0:02:53]}  Re8 {[%clk 0:02:48]} 10. Be2 {[%clk 0:02:52]}  b5 {[%clk 0:02:48]} 11. O-O {[%clk 0:02:39]}  bxc4 {[%clk 0:02:43]} 12. Bxc4 {[%clk 0:02:36]}  Nbd7 {[%clk 0:02:40]} 13. Bb5 {[%clk 0:02:28]}  Qb6 {[%clk 0:02:36]} 14. Bc6 {[%clk 0:02:12]}  Bb7 {[%clk 0:02:31]} 15. Bxd7 {[%clk 0:02:06]}  Nxd7 {[%clk 0:02:31]} 16. Be3 {[%clk 0:02:04]}  Ba6 {[%clk 0:02:24]} 17. Rb1 {[%clk 0:01:52]}  Qa5 {[%clk 0:02:18]} 18. Rf2 {[%clk 0:01:50]}  Qxc3 {[%clk 0:02:05]} 19. Nf5 {[%clk 0:01:38]}  Nf8 {[%clk 0:01:45]} 20. Rb3 {[%clk 0:01:34]}  Qa5 {[%clk 0:01:32]} 21. Nxd6 {[%clk 0:01:32]}  Red8 {[%clk 0:01:23]} 22. Nb7 {[%clk 0:01:25]}  Bxb7 {[%clk 0:01:22]} 23. Rxb7 {[%clk 0:01:25]}  Ng6 {[%clk 0:01:06]} 24. Rfb2 {[%clk 0:01:22]}  c4 {[%clk 0:00:55]} 25. R7b5 {[%clk 0:01:08]}  Qc3 {[%clk 0:00:54]} 26. Qd2 {[%clk 0:01:00]}  Qa3 {[%clk 0:00:44]} 27. Bc5 {[%clk 0:00:49]}  Qa6 {[%clk 0:00:38]} 28. Qc3 {[%clk 0:00:45]}  Nf4 {[%clk 0:00:38]} 29. Qxc4 {[%clk 0:00:39]}  Qg6 {[%clk 0:00:38]} 30. Be3 {[%clk 0:00:23]}  Rac8 {[%clk 0:00:38]} 31. Qf1 {[%clk 0:00:17]}  h5 {[%clk 0:00:35]} 32. Bxf4 {[%clk 0:00:16]}  exf4 {[%clk 0:00:35]} 33. Rb7 {[%clk 0:00:12]}  a5 {[%clk 0:00:33]} 34. Rb1 {[%clk 0:00:08]}  h4 {[%clk 0:00:33]} 35. h3 {[%clk 0:00:08]}  Qf6 {[%clk 0:00:29]} 36. Rc1 {[%clk 0:00:06]}  Qd4+ {[%clk 0:00:25]} 37. Kh1 {[%clk 0:00:06]}  Qd2 {[%clk 0:00:18]} 38. Rxc8 {[%clk 0:00:05]}  Rxc8 {[%clk 0:00:19]} 39. Rb1 {[%clk 0:00:05]}  Qxa2 {[%clk 0:00:16]} 40. d6 {[%clk 0:00:05]}  Qe6 {[%clk 0:00:15]} 41. Qd1 {[%clk 0:00:05]}  Rd8 {[%clk 0:00:15]} 42. Rb6 {[%clk 0:00:04]}  g6 {[%clk 0:00:10]} 43. Qd5 {[%clk 0:00:04]}  Qxd5 {[%clk 0:00:09]} 44. exd5 {[%clk 0:00:04]}  Kg7 {[%clk 0:00:09]} 45. Ra6 {[%clk 0:00:04]}  Kf6 {[%clk 0:00:09]} 46. Rxa5 {[%clk 0:00:05]}  Rxd6 {[%clk 0:00:10]} 47. Rb5 {[%clk 0:00:02]}  Ke5 {[%clk 0:00:10]} 48. Rb4 {[%clk 0:00:03]}  Rxd5 {[%clk 0:00:10]} 49. Re4+ {[%clk 0:00:03]}  Kf5 {[%clk 0:00:10]} 50. Re1 {[%clk 0:00:02]}  f6 {[%clk 0:00:09]} 51. Kg1 {[%clk 0:00:02]}  g5 {[%clk 0:00:08]} 52. Kf2 {[%clk 0:00:03]}  Rd2+ {[%clk 0:00:08]} 53. Kg1 {[%clk 0:00:03]}  Rd3 {[%clk 0:00:08]} 54. Kf2 {[%clk 0:00:03]}  Ra3 {[%clk 0:00:07]} 55. Kg1 {[%clk 0:00:03]}  Ra2 {[%clk 0:00:06]} 56. Kf1 {[%clk 0:00:03]}  Kg6 {[%clk 0:00:05]} 57. Kg1 {[%clk 0:00:03]}  f5 {[%clk 0:00:06]} 58. Re6+ {[%clk 0:00:02]}  Kf7 {[%clk 0:00:05]} 59. Re1 {[%clk 0:00:00]}  g4 {[%clk 0:00:04]} 0-1

[Event "December 19 Early 2023"]
[Site "https://www.chess.com"]
[Date "2023.12.19"]
[Round "8"]
[White "Fernandez Sanchez, Mario Andres"]
[Black "Navyblue1"]
[Result "1-0"]
[Board "170"]
[TimeControl "180+1"]
[WhiteFideId "6501621"]
[WhiteElo "2050"]
[BlackElo "2079"]
[WhiteTeam "CRC"]
[WhiteClock "0:00:31"]
[BlackClock "0:00:04"]

1. d4 {[%clk 0:03:00]}  Nf6 {[%clk 0:02:51]} 2. Nc3 {[%clk 0:02:59]}  d5 {[%clk 0:02:49]} 3. Bf4 {[%clk 0:02:55]}  c6 {[%clk 0:02:49]} 4. e3 {[%clk 0:02:53]}  b5 {[%clk 0:02:48]} 5. Bd3 {[%clk 0:02:49]}  g6 {[%clk 0:02:45]} 6. h4 {[%clk 0:02:48]}  Bg7 {[%clk 0:02:42]} 7. a3 {[%clk 0:02:43]}  Nbd7 {[%clk 0:02:32]} 8. Nf3 {[%clk 0:02:33]}  a5 {[%clk 0:02:19]} 9. Ne5 {[%clk 0:02:30]}  Nxe5 {[%clk 0:01:44]} 10. Bxe5 {[%clk 0:02:31]}  O-O {[%clk 0:01:19]} 11. h5 {[%clk 0:02:28]}  Nxh5 {[%clk 0:01:02]} 12. Rxh5 {[%clk 0:02:29]}  gxh5 {[%clk 0:01:01]} 13. Qxh5 {[%clk 0:02:30]}  f5 {[%clk 0:00:50]} 14. O-O-O {[%clk 0:02:09]}  Qe8 {[%clk 0:00:42]} 15. Qh2 {[%clk 0:02:05]}  Qg6 {[%clk 0:00:26]} 16. g4 {[%clk 0:02:01]}  Bxe5 {[%clk 0:00:23]} 17. dxe5 {[%clk 0:02:01]}  Kh8 {[%clk 0:00:18]} 18. Rg1 {[%clk 0:01:26]}  Qf7 {[%clk 0:00:18]} 19. g5 {[%clk 0:01:17]}  Qg6 {[%clk 0:00:18]} 20. Ne2 {[%clk 0:01:13]}  c5 {[%clk 0:00:17]} 21. Nf4 {[%clk 0:01:12]}  Qg7 {[%clk 0:00:17]} 22. g6 {[%clk 0:01:09]}  h6 {[%clk 0:00:17]} 23. Nh5 {[%clk 0:01:05]}  c4 {[%clk 0:00:15]} 24. Nxg7 {[%clk 0:01:04]}  Kxg7 {[%clk 0:00:15]} 25. Be2 {[%clk 0:00:59]}  Be6 {[%clk 0:00:15]} 26. f4 {[%clk 0:00:59]}  b4 {[%clk 0:00:15]} 27. Rh1 {[%clk 0:00:57]}  Rh8 {[%clk 0:00:14]} 28. Qh4 {[%clk 0:00:57]}  Ra7 {[%clk 0:00:15]} 29. Kd2 {[%clk 0:00:53]}  Rb7 {[%clk 0:00:12]} 30. axb4 {[%clk 0:00:53]}  axb4 {[%clk 0:00:12]} 31. Ra1 {[%clk 0:00:53]}  b3 {[%clk 0:00:10]} 32. c3 {[%clk 0:00:52]}  Rd7 {[%clk 0:00:09]} 33. Ra6 {[%clk 0:00:52]}  Bg8 {[%clk 0:00:09]} 34. e6 {[%clk 0:00:47]}  Rc7 {[%clk 0:00:09]} 35. Bf3 {[%clk 0:00:47]}  Kxg6 {[%clk 0:00:06]} 36. Ke2 {[%clk 0:00:43]}  Kg7 {[%clk 0:00:06]} 37. Bxd5 {[%clk 0:00:43]}  Bh7 {[%clk 0:00:06]} 38. Rb6 {[%clk 0:00:37]}  Bg6 {[%clk 0:00:06]} 39. Rb7 {[%clk 0:00:37]}  Rhc8 {[%clk 0:00:06]} 40. Rxc7 {[%clk 0:00:33]}  Rxc7 {[%clk 0:00:07]} 41. Kf3 {[%clk 0:00:31]}  Bh7 {[%clk 0:00:05]} 42. e4 {[%clk 0:00:31]}  fxe4+ {[%clk 0:00:05]} 43. Bxe4 {[%clk 0:00:32]}  Bxe4+ {[%clk 0:00:05]} 44. Kxe4 {[%clk 0:00:33]}  Kg6 {[%clk 0:00:05]} 45. f5+ {[%clk 0:00:33]}  Kg7 {[%clk 0:00:06]} 46. Qg4+ {[%clk 0:00:32]}  Kf8 {[%clk 0:00:06]} 47. Qg6 {[%clk 0:00:32]}  Rc5 {[%clk 0:00:04]} 48. Qxh6+ {[%clk 0:00:31]} 1-0

[Event "December 19 Early 2023"]
[Site "https://www.chess.com"]
[Date "2023.12.19"]
[Round "8"]
[White "Dominguez Rincon, Miller Duvan"]
[Black "Kohler, Aran"]
[Result "0-1"]
[Board "171"]
[TimeControl "180+1"]
[WhiteFideId "4406583"]
[BlackFideId "1002856"]
[WhiteElo "1960"]
[BlackElo "2280"]
[WhiteTeam "COL"]
[BlackTeam "NED"]
[WhiteClock "0:00:00"]
[BlackClock "0:00:43"]

1. e4 {[%clk 0:03:00]}  g6 {[%clk 0:02:59]} 2. d4 {[%clk 0:02:58]}  Bg7 {[%clk 0:03:00]} 3. Nc3 {[%clk 0:02:55]}  d6 {[%clk 0:03:00]} 4. f3 {[%clk 0:02:52]}  a6 {[%clk 0:03:01]} 5. Be3 {[%clk 0:02:52]}  Nd7 {[%clk 0:03:01]} 6. Qd2 {[%clk 0:02:52]}  e5 {[%clk 0:03:00]} 7. Nge2 {[%clk 0:02:51]}  h6 {[%clk 0:02:43]} 8. O-O-O {[%clk 0:02:50]}  g5 {[%clk 0:02:44]} 9. Kb1 {[%clk 0:02:48]}  Ne7 {[%clk 0:02:42]} 10. h4 {[%clk 0:02:46]}  gxh4 {[%clk 0:02:35]} 11. Rxh4 {[%clk 0:02:46]}  Ng6 {[%clk 0:02:35]} 12. Rh1 {[%clk 0:02:45]}  h5 {[%clk 0:02:35]} 13. Ng3 {[%clk 0:02:41]}  h4 {[%clk 0:02:33]} 14. Nf5 {[%clk 0:02:41]}  Bf6 {[%clk 0:02:33]} 15. Nd5 {[%clk 0:02:39]}  Rh5 {[%clk 0:01:56]} 16. g4 {[%clk 0:02:25]}  Rh7 {[%clk 0:01:42]} 17. Qc3 {[%clk 0:01:55]}  c6 {[%clk 0:01:34]} 18. Nxd6+ {[%clk 0:01:54]}  Kf8 {[%clk 0:01:34]} 19. Nxf6 {[%clk 0:01:38]}  Qxf6 {[%clk 0:01:31]} 20. dxe5 {[%clk 0:01:37]}  Ngxe5 {[%clk 0:01:28]} 21. Nxc8 {[%clk 0:01:16]}  Rxc8 {[%clk 0:01:26]} 22. f4 {[%clk 0:01:16]}  Nxg4 {[%clk 0:01:21]} 23. Qb4+ {[%clk 0:00:45]}  c5 {[%clk 0:01:06]} 24. Qe1 {[%clk 0:00:18]}  Nxe3 {[%clk 0:01:00]} 25. Qxe3 {[%clk 0:00:19]}  Nb6 {[%clk 0:00:59]} 26. Bh3 {[%clk 0:00:17]}  Re8 {[%clk 0:00:57]} 27. Qb3 {[%clk 0:00:15]}  Rxe4 {[%clk 0:00:48]} 28. Rhe1 {[%clk 0:00:14]}  Rb4 {[%clk 0:00:45]} 29. Qa3 {[%clk 0:00:00]}  Nc4 {[%clk 0:00:43]} 0-1

[Event "December 19 Early 2023"]
[Site "https://www.chess.com"]
[Date "2023.12.19"]
[Round "8"]
[White "Barwinska, Ewa"]
[Black "Santos, Isaque Goncalves"]
[Result "1-0"]
[Board "172"]
[TimeControl "180+1"]
[WhiteFideId "21833761"]
[BlackFideId "2103885"]
[WhiteElo "1879"]
[BlackElo "1901"]
[WhiteTeam "POL"]
[BlackTeam "BRA"]
[WhiteClock "0:00:30"]
[BlackClock "0:00:00"]

1. e4 {[%clk 0:03:00]}  e6 {[%clk 0:01:02]} 2. d4 {[%clk 0:02:58]}  d5 {[%clk 0:01:02]} 3. Nc3 {[%clk 0:02:59]}  Nf6 {[%clk 0:01:02]} 4. e5 {[%clk 0:02:58]}  Nfd7 {[%clk 0:01:02]} 5. f4 {[%clk 0:02:58]}  c5 {[%clk 0:01:02]} 6. Nf3 {[%clk 0:02:59]}  Nc6 {[%clk 0:01:03]} 7. Be3 {[%clk 0:02:58]}  Qb6 {[%clk 0:01:02]} 8. Na4 {[%clk 0:02:55]}  Qa5+ {[%clk 0:01:01]} 9. c3 {[%clk 0:02:56]}  cxd4 {[%clk 0:01:02]} 10. b4 {[%clk 0:02:56]}  Qc7 {[%clk 0:00:59]} 11. Nxd4 {[%clk 0:02:30]}  Nxd4 {[%clk 0:00:54]} 12. Bxd4 {[%clk 0:02:28]}  Be7 {[%clk 0:00:51]} 13. Bd3 {[%clk 0:02:23]}  a5 {[%clk 0:00:50]} 14. a3 {[%clk 0:02:16]}  b6 {[%clk 0:00:46]} 15. O-O {[%clk 0:02:06]}  Ba6 {[%clk 0:00:44]} 16. Bxa6 {[%clk 0:02:02]}  Rxa6 {[%clk 0:00:43]} 17. Qd3 {[%clk 0:02:02]}  Ra8 {[%clk 0:00:36]} 18. Qb5 {[%clk 0:02:03]}  O-O {[%clk 0:00:33]} 19. Nxb6 {[%clk 0:01:56]}  Nxb6 {[%clk 0:00:29]} 20. Qxb6 {[%clk 0:01:54]}  Qc4 {[%clk 0:00:22]} 21. Qb7 {[%clk 0:00:59]}  Rfe8 {[%clk 0:00:17]} 22. f5 {[%clk 0:00:37]}  Rab8 {[%clk 0:00:16]} 23. Qd7 {[%clk 0:00:37]}  axb4 {[%clk 0:00:16]} 24. fxe6 {[%clk 0:00:36]}  fxe6 {[%clk 0:00:06]} 25. axb4 {[%clk 0:00:34]}  Bg5 {[%clk 0:00:03]} 26. Qf7+ {[%clk 0:00:32]}  Kh8 {[%clk 0:00:02]} 27. Ra7 {[%clk 0:00:32]}  Bh6 {[%clk 0:00:00]} 28. Re7 {[%clk 0:00:30]} 1-0

[Event "December 19 Early 2023"]
[Site "https://www.chess.com"]
[Date "2023.12.19"]
[Round "8"]
[White "Zepeda Berlanga, Jan Enrique"]
[Black "Lund, Gunnar"]
[Result "0-1"]
[Board "173"]
[TimeControl "180+1"]
[WhiteFideId "5132355"]
[BlackFideId "1520814"]
[WhiteElo "1680"]
[BlackElo "2233"]
[WhiteTeam "MEX"]
[BlackTeam "NOR"]
[WhiteClock "0:00:41"]
[BlackClock "0:02:38"]

1. e4 {[%clk 0:03:00]}  e6 {[%clk 0:02:49]} 2. Nf3 {[%clk 0:02:57]}  d5 {[%clk 0:02:49]} 3. exd5 {[%clk 0:02:58]}  exd5 {[%clk 0:02:50]} 4. d4 {[%clk 0:02:58]}  Nf6 {[%clk 0:02:50]} 5. Bd3 {[%clk 0:02:50]}  c5 {[%clk 0:02:50]} 6. O-O {[%clk 0:02:46]}  c4 {[%clk 0:02:50]} 7. Be2 {[%clk 0:02:45]}  Be7 {[%clk 0:02:49]} 8. a4 {[%clk 0:02:40]}  O-O {[%clk 0:02:49]} 9. b3 {[%clk 0:02:39]}  cxb3 {[%clk 0:02:49]} 10. cxb3 {[%clk 0:02:39]}  Nc6 {[%clk 0:02:50]} 11. Re1 {[%clk 0:02:36]}  Bf5 {[%clk 0:02:50]} 12. Bf4 {[%clk 0:02:22]}  Rc8 {[%clk 0:02:49]} 13. Bd3 {[%clk 0:02:13]}  Bxd3 {[%clk 0:02:49]} 14. Qxd3 {[%clk 0:02:12]}  Nb4 {[%clk 0:02:50]} 15. Qe2 {[%clk 0:02:09]}  Nc2 {[%clk 0:02:49]} 16. Qxe7 {[%clk 0:01:58]}  Nxa1 {[%clk 0:02:48]} 17. Na3 {[%clk 0:01:52]}  Nxb3 {[%clk 0:02:45]} 18. Nb5 {[%clk 0:01:32]}  Re8 {[%clk 0:02:40]} 19. Qxd8 {[%clk 0:01:31]}  Rcxd8 {[%clk 0:02:41]} 20. Ne5 {[%clk 0:01:22]}  a6 {[%clk 0:02:40]} 21. Rb1 {[%clk 0:01:04]}  axb5 {[%clk 0:02:37]} 22. Rxb3 {[%clk 0:01:03]}  bxa4 {[%clk 0:02:38]} 23. Rxb7 {[%clk 0:01:04]}  Ra8 {[%clk 0:02:38]} 24. h4 {[%clk 0:00:58]}  a3 {[%clk 0:02:38]} 25. Rb1 {[%clk 0:00:49]}  a2 {[%clk 0:02:39]} 26. Ra1 {[%clk 0:00:50]}  Reb8 {[%clk 0:02:39]} 27. Bd2 {[%clk 0:00:41]}  Rb1+ {[%clk 0:02:38]} 0-1

[Event "December 19 Early 2023"]
[Site "https://www.chess.com"]
[Date "2023.12.19"]
[Round "8"]
[White "Kotlyar, Kirill"]
[Black "Vila Dupla, Aurelio"]
[Result "1-0"]
[Board "177"]
[TimeControl "180+1"]
[WhiteFideId "24145599"]
[BlackFideId "2203383"]
[WhiteElo "2397"]
[BlackElo "2009"]
[WhiteTeam "RUS"]
[BlackTeam "ESP"]
[WhiteClock "0:00:50"]
[BlackClock "0:00:00"]

1. e4 {[%clk 0:02:56]}  c5 {[%clk 0:02:58]} 2. Nf3 {[%clk 0:02:57]}  d6 {[%clk 0:02:58]} 3. d4 {[%clk 0:02:58]}  cxd4 {[%clk 0:02:58]} 4. Qxd4 {[%clk 0:02:59]}  Nc6 {[%clk 0:02:57]} 5. Bb5 {[%clk 0:02:58]}  Bd7 {[%clk 0:02:58]} 6. Bxc6 {[%clk 0:02:59]}  Bxc6 {[%clk 0:02:59]} 7. Nc3 {[%clk 0:02:59]}  Nf6 {[%clk 0:02:57]} 8. Bg5 {[%clk 0:02:58]}  e6 {[%clk 0:02:57]} 9. O-O-O {[%clk 0:02:58]}  Be7 {[%clk 0:02:58]} 10. Qd3 {[%clk 0:02:58]}  O-O {[%clk 0:02:57]} 11. Nd4 {[%clk 0:02:58]}  Qa5 {[%clk 0:02:51]} 12. f4 {[%clk 0:02:51]}  Rfc8 {[%clk 0:02:48]} 13. h4 {[%clk 0:02:40]}  Bd8 {[%clk 0:02:12]} 14. h5 {[%clk 0:02:31]}  h6 {[%clk 0:02:06]} 15. Bxf6 {[%clk 0:02:12]}  Bxf6 {[%clk 0:02:05]} 16. f5 {[%clk 0:02:12]}  exf5 {[%clk 0:01:47]} 17. Nxf5 {[%clk 0:02:05]}  Bxc3 {[%clk 0:01:45]} 18. bxc3 {[%clk 0:01:55]}  Rd8 {[%clk 0:00:43]} 19. Qg3 {[%clk 0:01:46]}  Qe5 {[%clk 0:00:39]} 20. Qxe5 {[%clk 0:01:30]}  dxe5 {[%clk 0:00:39]} 21. Ne7+ {[%clk 0:01:29]}  Kf8 {[%clk 0:00:38]} 22. Nxc6 {[%clk 0:01:30]}  bxc6 {[%clk 0:00:38]} 23. Rd3 {[%clk 0:01:31]}  Rxd3 {[%clk 0:00:37]} 24. cxd3 {[%clk 0:01:32]}  Ke7 {[%clk 0:00:35]} 25. Kc2 {[%clk 0:01:31]}  Rb8 {[%clk 0:00:35]} 26. Rd1 {[%clk 0:01:24]}  c5 {[%clk 0:00:34]} 27. Rf1 {[%clk 0:01:09]}  Rb6 {[%clk 0:00:30]} 28. a4 {[%clk 0:01:07]}  Ke6 {[%clk 0:00:26]} 29. g4 {[%clk 0:01:03]}  a5 {[%clk 0:00:25]} 30. Rf5 {[%clk 0:01:00]}  g6 {[%clk 0:00:24]} 31. hxg6 {[%clk 0:00:51]}  fxg6 {[%clk 0:00:25]} 32. Rf8 {[%clk 0:00:52]}  Ke7 {[%clk 0:00:08]} 33. Rh8 {[%clk 0:00:49]}  h5 {[%clk 0:00:07]} 34. gxh5 {[%clk 0:00:49]}  gxh5 {[%clk 0:00:06]} 35. Rh7+ {[%clk 0:00:49]}  Kf8 {[%clk 0:00:05]} 36. Rxh5 {[%clk 0:00:50]}  Re6 {[%clk 0:00:04]} 37. Rh7 {[%clk 0:00:49]}  Rg6 {[%clk 0:00:01]} 38. Ra7 {[%clk 0:00:49]}  Rg2+ {[%clk 0:00:00]} 39. Kb3 {[%clk 0:00:50]} 1-0